Cogmind - Beta 12 @@@ ROGUE MODE // 2023.05.15 @ 23:16:55 Player: Mr Goldstein Result: Self-destructed Performance ------------- Evolutions (2) 1000 Regions Visited (4) 800 Robots Destroyed (4) 20 Value Destroyed (40) 40 Prototype IDs (0) 0 Alien Tech Used (0) 0 Bonus (470) 470 TOTAL SCORE: 2330 Bonus ------- Pacifist 470 Cogmind --------- Core Integrity 22/550 Matter 270/300 Energy 100/100 System Corruption 0% Temperature Cool (6) Movement Core (50) Location -8/Storage Parts ------- > --- POWER (1) -------- (None) > --- PROPULSION (2) --- (None) > --- UTILITY (6) ------ (None) > --- WEAPON (2) ------- (None) > --- INVENTORY (5) ---- Grenade Launcher Missile Launcher Peak State ------------ > --- POWER ------------ (None) > --- PROPULSION ------- (None) > --- UTILITY ---------- (None) > --- WEAPON ----------- Missile Launcher > --- INVENTORY -------- Grenade Launcher [Rating: 3] Favorites ----------- Power None Propulsion None Utility None Weapon Missile Launcher Launcher Missile Launcher Build | -11 -10 -9 -8 -8 ------- Run | Jun Mat Mat Mat Sto Slots Evolved 4 | . . 2 2 . Power . | . . . . . Propulsion . | . . . . . Utility 4 | . . 2 2 . Weapon . | . . . . . Parts Attached 1 | . . . . 1 Power . | . . . . . Engine . | . . . . . Core . | . . . . . Reactor . | . . . . . Propulsion . | . . . . . Treads . | . . . . . Leg . | . . . . . Wheel . | . . . . . Hover . | . . . . . Flight . | . . . . . Utility . | . . . . . Device . | . . . . . Storage . | . . . . . Processor . | . . . . . Hackware . | . . . . . Protection . | . . . . . Artifact . | . . . . . Weapon 1 | . . . . 1 Energy Gun . | . . . . . Energy Cannon . | . . . . . Ballistic Gun . | . . . . . Ballistic Cannon . | . . . . . Launcher 1 | . . . . 1 Special Weapon . | . . . . . Impact Weapon . | . . . . . Slashing Weapon . | . . . . . Piercing Weapon . | . . . . . Special Melee Weapon . | . . . . . Unidentified Prototypes . | . . . . . Parts Lost . | . . . . . Power . | . . . . . Propulsion . | . . . . . Utility . | . . . . . Weapon . | . . . . . Highest Loss Streak . | . . . . . To Critical Strikes . | . . . . . Average Slot Usage (%) . | . . . . . Naked Turns 243 | . 77 50 49 67 Heaviest Build . | . . . . . Greatest Support 3 | 3 3 3 3 3 Greatest Overweight (x) . | . . . . . Average Overweight (x) . | . . . . . Largest Inventory Capacity 5 | 5 5 5 5 5 Average Capacity 5 | 5 5 5 5 5 Most Carried 2 | . 1 1 1 2 Average Carried 1 | . . 1 1 1 Final Capacity 5 | 5 5 5 5 5 Final Carried 2 | . 1 1 1 2 Class Distribution -------------------- 100% | Mutant Dominant Class ---------------- Mutant | -10/Materials Mutant | -9/Materials Mutant | -8/Materials Mutant | -8/Storage Resources | -11 -10 -9 -8 -8 ----------- Run | Jun Mat Mat Mat Sto Matter Collected 206 | 200 . . . 6 Remotely . | . . . . . Salvage Created 9 | . . . . 9 Parts 4 | . . . . 4 Haulers Intercepted . | . . . . . Recyclers Shooed . | . . . . . Parts Field Recycled . | . . . . . Retrieved Matter . | . . . . . Parts Self-Destructed . | . . . . . Prevented . | . . . . . Kills | -11 -10 -9 -8 -8 ------- Run | Jun Mat Mat Mat Sto Combat Hostiles Destroyed 4 | . . . . 4 AOE 4 | . . . . 4 Classes Destroyed 1 | . . . . 1 Swarmer 4 | . . . . 4 Best Kill Streak 4 | . . . . 4 Combat Bots Only 4 | . . . . 4 Max Kills in Single Turn 2 | . . . . 2 Gunslinging . | . . . . . Exploded 2 | . . . . 2 Melee . | . . . . . Uniques/NPCs Destroyed . | . . . . . Combat | -11 -10 -9 -8 -8 -------- Run | Jun Mat Mat Mat Sto Damage Taken 797 | . 134 97 161 405 Core 759 | . 134 97 161 367 Absorbed by Shields 21 | . . . . 21 Core Remaining (%) 73 | 100 46 75 . . Volleys Fired 2 | . . . . 2 Largest 1 | . . . . 1 Hottest 36 | . . . . 36 Shots Fired 2 | . . . . 2 Gun . | . . . . . Cannon . | . . . . . Launcher 2 | . . . . 2 Special . | . . . . . Kinetic . | . . . . . Thermal . | . . . . . Explosive 2 | . . . . 2 Electromagnetic . | . . . . . Robot Hit Streak 2 | . . . . 2 Robot Miss Streak . | . . . . . Penetration Max . | . . . . . Secondary Targets . | . . . . . Shots Hit Robots 2 | . . . . 2 Core Hits 5 | . . . . 5 Critical Kills . | . . . . . Critical Parts Destroyed . | . . . . . Critical Strikes . | . . . . . Melee Attacks . | . . . . . Impact . | . . . . . Slashing . | . . . . . Piercing . | . . . . . Sneak Attacks . | . . . . . Combat Hostiles . | . . . . . Follow-up Attacks . | . . . . . Damage Inflicted 322 | . . . . 322 Guns . | . . . . . Cannons . | . . . . . Explosions 322 | . . . . 322 Melee . | . . . . . Ramming . | . . . . . Kinetic . | . . . . . Thermal . | . . . . . Explosive 322 | . . . . 322 Electromagnetic . | . . . . . Impact . | . . . . . Slashing . | . . . . . Piercing . | . . . . . Highest Corruption . | . . . . . Average Corruption . | . . . . . Corruption Purged . | . . . . . Corruption Blocked . | . . . . . Overload Shots . | . . . . . Overflow Damage . | . . . . . Projectiles . | . . . . . Explosions . | . . . . . Melee . | . . . . . Knockbacks . | . . . . . Impact . | . . . . . Kinetic . | . . . . . Secondary . | . . . . . Self-Inflicted Damage . | . . . . . Shots . | . . . . . Rammed . | . . . . . Targets Rammed . | . . . . . Kicked . | . . . . . Crushed . | . . . . . Highest Temperature . | . . . . . Average Temperature . | . . . . . Received Heat Transfer 363 | . 78 48 108 129 Siege Activations . | . . . . . Robots Corrupted . | . . . . . Combat Hostiles . | . . . . . Parts Fried . | . . . . . Impact Corruptions . | . . . . . Robots Melted . | . . . . . Combat Hostiles . | . . . . . Parts Melted . | . . . . . Heat Transferred . | . . . . . Parts Sabotaged . | . . . . . Parts Stolen . | . . . . . Parts Stripped . | . . . . . Power Chain Reactions . | . . . . . Missiles Intercepted . | . . . . . Alert | -11 -10 -9 -8 -8 ------- Run | Jun Mat Mat Mat Sto Peak Influence 182 | . 60 70 67 182 Initial 29 | . . 25 29 27 Average 51 | . 22 32 49 106 Maximum Alert Level . | . . . . . Low Security (%) 100 | 100 100 100 100 100 Level 1 . | . . . . . Level 2 . | . . . . . Level 3 . | . . . . . Level 4 . | . . . . . Level 5 . | . . . . . High Security . | . . . . . Max Security . | . . . . . Squads Dispatched 6 | . 2 . 3 1 Investigation 4 | . 1 . 3 . Extermination . | . . . . . Reinforcement 2 | . 1 . . 1 Assault . | . . . . . Garrison . | . . . . . Intercept . | . . . . . Searches Triggered . | . . . . . Construction Impeded . | . . . . . Haulers Reinforced . | . . . . . Active Scanning Responses . | . . . . . Cargo Convoy Interrupts . | . . . . . Stealth | -11 -10 -9 -8 -8 --------- Run | Jun Mat Mat Mat Sto Distress Signals 3 | . . 1 . 2 Communications Jammed . | . . . . . Distress Signals . | . . . . . Times Spotted 37 | . 10 6 10 11 Peak Tracking Total 10 | . 8 8 10 7 Tactical Retreats 1 | . 1 . . . Traps | -11 -10 -9 -8 -8 ------- Run | Jun Mat Mat Mat Sto Traps Triggered 2 | . 1 . . 1 Indirectly . | . . . . . Trap Hack Attempts . | . . . . . Triggered . | . . . . . Disarmed . | . . . . . Reprogrammed . | . . . . . Reused . | . . . . . Traps Extracted . | . . . . . Installed . | . . . . . Triggered . | . . . . . Machines | -11 -10 -9 -8 -8 ---------- Run | Jun Mat Mat Mat Sto Machines Disabled . | . . . . . Max in Single Turn . | . . . . . Machines Repaired . | . . . . . Machines Sabotaged . | . . . . . Overloaded Fab Kills . | . . . . . Hacking | -11 -10 -9 -8 -8 --------- Run | Jun Mat Mat Mat Sto Machines Accessed 3 | . . . 3 . Terminals 3 | . . . 3 . Fabricators . | . . . . . Repair Stations . | . . . . . Recycling Units . | . . . . . Scanalyzers . | . . . . . Garrison Access . | . . . . . Total Hacks 10 | . . . 10 . Successful 1 | . . . 1 . Failed 9 | . . . 9 . Catastrophic 3 | . . . 3 . Database Lockouts . | . . . . . Manual 10 | . . . 10 . Terminals 10 | . . . 10 . Fabricators . | . . . . . Repair Stations . | . . . . . Recycling Units . | . . . . . Scanalyzers . | . . . . . Garrison Access . | . . . . . Terminal Hacks 1 | . . . 1 . Branch Access Points 1 | . . . 1 . Fabricator Hacks . | . . . . . Repair Station Hacks . | . . . . . Recycling Unit Hacks . | . . . . . Scanalyzer . | . . . . . Garrison Access Hacks . | . . . . . Unauthorized Hacks . | . . . . . Terminals . | . . . . . Fabricators . | . . . . . Repair Stations . | . . . . . Recycling Units . | . . . . . Scanalyzers . | . . . . . Garrison Access . | . . . . . Data Cores Recovered . | . . . . . Used . | . . . . . Hacking Detections 3 | . . . 3 . Full Trace Events 3 | . . . 3 . Feedback Events . | . . . . . Feedback Blocked . | . . . . . Robot Schematics Acquired . | . . . . . Robots Built . | . . . . . Authchips . | . . . . . Time . | . . . . . Total Robot Build Rating . | . . . . . Part Schematics Acquired . | . . . . . Parts Built . | . . . . . Authchips . | . . . . . Time . | . . . . . Total Part Build Rating . | . . . . . Parts Repaired . | . . . . . Time . | . . . . . Parts Recycled . | . . . . . Recycled Matter . | . . . . . Retrieved Matter . | . . . . . Retrieved Components . | . . . . . Parts Scanalyzed . | . . . . . Part Schematics Acquired . | . . . . . Parts Damaged . | . . . . . Bothacking | -11 -10 -9 -8 -8 ------------ Run | Jun Mat Mat Mat Sto Used RIF Installer . | . . . . . Robots Hacked . | . . . . . Non-combat . | . . . . . Combat . | . . . . . Robot Hacks Applied . | . . . . . Relay Couplers Released . | . . . . . Fabnet Peak Effective % . | . . . . . Robots Rewired . | . . . . . Allies Hacked . | . . . . . Hacks Repelled . | . . . . . Allies | -11 -10 -9 -8 -8 -------- Run | Jun Mat Mat Mat Sto Total Allies . | . . . . . Largest Group . | . . . . . Highest-Rated Group . | . . . . . Highest-Rated Ally . | . . . . . Total Orders . | . . . . . Ally Attacks . | . . . . . Total Damage . | . . . . . Kills . | . . . . . Allies Corrupted . | . . . . . Allies Melted . | . . . . . Intel | -11 -10 -9 -8 -8 ------- Run | Jun Mat Mat Mat Sto Robot Analysis Total . | . . . . . Derelict Logs Recovered . | . . . . . Drone Launches . | . . . . . Drone Recoveries . | . . . . . Exploration | -11 -10 -9 -8 -8 ------------- Run | Jun Mat Mat Mat Sto Turns Passed 263 | 15 77 50 49 72 Spaces Moved 504 | 30 152 100 98 124 Core 504 | 30 152 100 98 124 Treads . | . . . . . Legs . | . . . . . Wheels . | . . . . . Hover . | . . . . . Flight . | . . . . . Fastest Speed 50 | 50 50 50 50 50 Average Speed 50 | 50 50 50 50 50 Slowest Speed 50 | 50 50 50 50 50 Overloaded Moves . | . . . . . Propulsion Burnouts . | . . . . . Robots Hopped . | . . . . . Cave-ins Triggered . | . . . . . Exploration Rate (%) 19 | 3 41 15 14 23 Regions Visited 4 Branch Regions 1 Pre-discovered Areas . | . . . . . Known Exits Taken 1 | . . . 1 . Unknown Exits Taken 3 | 1 1 1 . . Scrap Searched . | . . . . . Spaces Dug . | . . . . . Terrain Destroyed 18 | . . . . 18 Melee . | . . . . . Projectile . | . . . . . AOE 18 | . . . . 18 Terrain Rammed . | . . . . . Walls Destroyed . | . . . . . Machines Disabled . | . . . . . Actions | -11 -10 -9 -8 -8 --------- Run | Jun Mat Mat Mat Sto Total 509 | 29 152 99 97 132 Wait . | . . . . . Move 500 | 29 151 99 97 124 Hop . | . . . . . Pick Up 2 | . 1 . . 1 Fast Attach . | . . . . . Attach 1 | . . . . 1 Detach 1 | . . . . 1 Swap . | . . . . . Drop . | . . . . . Fire 2 | . . . . 2 Melee . | . . . . . Ram . | . . . . . Kick . | . . . . . Crush . | . . . . . Escape Stasis 3 | . . . . 3 Rewire . | . . . . . Trap . | . . . . . Miscellaneous . | . . . . . Route ------- -11/Junkyard -10/Materials (discovered 2 exits: [*Mat] / [*Min]) -9/Materials -8/Materials -8/Storage History --------- Turn | Location | Event 4 | -11/Junkyard | Discovered new exit (range 15) 16 | -11/Junkyard | Entered Materials 56 | -10/Materials | Discovered new exit (range 14) 90 | -10/Materials | Core integrity fell below 50% 92 | -10/Materials | Discovered new exit (range 4) 93 | -10/Materials | Entered another Materials area 93 | -9/Materials | Evolved 2 slots: Utility x2 140 | -9/Materials | Discovered new exit (range 8) 143 | -9/Materials | Entered another Materials area 143 | -8/Materials | Evolved 2 slots: Utility x2 168 | -8/Materials | Identified exit to Storage 192 | -8/Materials | Entered Storage 222 | -8/Storage | Core integrity fell below 50% 253 | -8/Storage | Core integrity fell below 20% 264 | -8/Storage | Self-destructed Last Messages --------------- 00240_ ALERT: Hostiles spotted, dispatching reinforcements to Terminal S010. 00240_ O-16 Technician locks terminal. 00245_ K-01 Serf collects debris. 00251_ U-05 Engineer builds a Wall. 00251_ K-01 Serf collects debris. 00257_ Acquired 6 matter. 00258_ U-05 Engineer lays Concrete. 00260_ The unstable cave ceiling collapses. 00260_ U-05 Engineer lays Concrete. 00261_ Triggered Stasis Trap. 00261_ A bubble of rippling energy engulfs the area. 00261_ Field strength at 94. 00261_ U-05 Engineer lays Concrete. 00261_ Field strength at 84. 00262_ U-05 Engineer lays Concrete. 00262_ Field strength at 69. 00263_ U-05 Engineer lays Concrete. 00263_ Field strength at 59. 00264_ U-05 Engineer lays Concrete. Map ----- +----------------------------------------------------+ | ????# ### #??????????????????????? | | ????# #?# #??????????????????????? | | ????#### #?# #??????????????????????? | | ???????# ### #??????????????????????? | | ???????# # #??????????????????????? | | ???????# + =#??????????????????????? | | ???????# # #??????????????????????? | | ???????# # [ #??????????????????????? | | ???????# # #??????????????????????? | | ???????# # #??????????????????????? | | ???????# # #??????????????????????? | | ???????# # % #??????????????????????? | | ???????# ########??????????????????????? | | ???????# ########??????????????????????? | | ???????# # #??????????????????????? | | ???????# # """ #??????????????????????? | | ?????### # """ ##?????????????????????? | | ###### # """ #?????????????????????? | | # ##?????????????????????? | | # # """ #??????????????????????? | | # *[ """ #??????????????????????? | | # """ #??????????????????????? | | # ]]] =#?????"""??????????????? | | # ] ] ###########""T""# #?????????? | | # ]] %= ^ #?????????? | | # u @ g #?????????? | | # g g #?????????? | | #" """ ###############+###???????????? | | #T """ # ##????????????????????????????? | | #" """ # #?????????????????????????????? | | # # #?????????????????????????????? | | ######## #?????????????????????????????? | | ???????# #?????????????????????????????? | | ???????# #?????????????????????????????? | | ???????# #?????????????????????????????? | | ???????# #?????????????????????????????? | | ???????# #?????????????????????????????? | | ???????# #?????????????????????????????? | | ???????+ #?????????????????????????????? | | ???????# #?????????????????????????????? | | ???????# #?????????????????????????????? | | ???????# #?????????????????????????????? | | ???????# #?????????????????????????????? | | ???????# #?????????????????????????????? | | ???????#####?????????????????????????????? | | ?????????????????????????????????????????? | | ?????????????????????????????????????????? | | ?????????????????????????????????????????? | | ?????????????????????????????????????????? | | ?????????????????????????????????????????? | +----------------------------------------------------+ Best States ------------- Heat Dissipation 31 Energy Generation 5 Energy Capacity 100 Matter Stores 300 Matter Capacity 300 Sight Range 16 Terrain Scan Density 10 Evasion (%) 50 Item Schematics ----------------- None Robot Schematics ------------------ None Fabricated ------------ Nothing Alien Tech Used ----------------- None Achievements -------------- None Challenges ------------ None Game ------ Seed ComponentNullRedistributor Manual? 0 Play Time 00:03:10 Cumulative 214.6 hours Start 2023.05.15 @ 23:14:28 End 2023.05.15 @ 23:16:55 Sessions 1 Manual Loads 0 Difficulty Rogue Special Mode None Game No. 633 Rogue 633 Adventurer 0 Explorer 0 Win Type - Total 9 Types 7/0/1/1/0/0/0/0/0 Lore% 82 Gallery% 80 Achievement% 71 Wizard Run 0 Options --------- ASCII 0 Keyboard 0 Movement Numpad Keybinds 0 Fullscreen 1 Font 16/SmallcapsGlow Map View 75x55 Tactical HUD 1 Map Filters NONE Filters NONE Steam 1 RUN: 9ff73aa2-72d8-473f-8df2-5bb04f96114e